bitfinex/quotes_ETHUSD_20220213
["timestamp","ask_amount","ask_price","bid_price","bid_amount"]
[1644773837398,0.44724177,2885.2,2885.1,0.501]
[1644773837596,0.44724177,2885.2,2885.1,0.9743]
[1644773838038,0.44724177,2885.2,2885.1,2.70736]
[1644773838243,0.00771563,2885.7,2885.1,4.44042]
[1644773838440,0.00771563,2885.7,2885.1,4.26717]
[1644773838639,0.00771563,2885.7,2885.2,0.3]
[1644773838942,0.00771563,2885.7,2885.1,2.59975]
[1644773839139,0.57574479,2885.9,2885.0,0.86672]
[1644773839344,0.85938915,2885.4,2885.0,0.86672]
[1644773839542,0.01129146,2885.7,2885.0,0.86672]
[1644773839742,0.01129146,2885.7,2885.0,1.16672]
[1644773840144,0.01129146,2885.7,2885.2,0.86658]
[1644773840444,0.57574479,2885.9,2885.2,0.86663]
[1644773840642,1.08320156,2885.6,2885.2,0.86663]
[1644773841447,1.08320156,2885.6,2885.2,1.73322]
[1644773841645,1.08320156,2885.6,2885.2,0.86663]
[1644773841899,1.08320156,2885.6,2884.5,1.4666]
[1644773841900,1.08320156,2885.6,2885.1,0.86669]
[1644773842094,0.1731,2885.5,2884.5,1.4666]
[1644773842288,0.1731,2885.5,2884.5,1.2166]
[1644773842487,0.86685,2885.4,2884.5,1.2166]
[1644773842888,0.98955737,2885.1,2884.4,1.17978111]
[1644773843289,0.98955737,2885.1,2884.6,0.86683]
[1644773847544,0.1733,2885.4,2884.7,0.3]
[1644773847748,0.1733,2885.4,2884.8,1.36776]
[1644773847947,3.5,2885.5,2884.0,0.86514827]
[1644773848146,0.65950484,2885.3,2883.9,0.25]
[1644773848345,4.33280484,2885.2,2883.9,0.25]
[1644773848545,0.65950484,2885.0,2883.9,0.25]
[1644773848746,0.1733,2884.9,2883.9,0.25]
[1644773849046,1.52649484,2885.0,2884.1,0.01129558]
[1644773849047,0.86699,2885.0,2884.1,0.01129558]
[1644773849295,0.83280484,2884.9,2884.1,0.01129558]
[1644773849486,1.69982484,2884.9,2884.1,0.01129558]
[1644773849692,1.04032,2884.9,2884.1,0.01129558]
[1644773849885,2.04032,2884.9,2884.1,0.01129558]
[1644773850089,4.52177933,2884.9,2883.8,5.26870582]
[1644773850286,5.34847933,2884.9,2884.1,0.01129518]
[1644773850487,0.94669631,2884.6,2884.1,0.01129518]
[1644773851188,0.94669631,2884.6,2883.9,0.1733]
[1644773851387,0.94669631,2884.6,2884.1,0.01129478]
[1644773851591,3.6733,2884.5,2884.1,0.01129478]
[1644773851792,0.87993653,2884.2,2884.1,0.01129478]
[1644773851989,0.87993653,2884.2,2883.3,0.0451904]
[1644773851990,3.2,2884.1,2883.3,0.0451904]
[1644773852192,0.1733,2884.0,2883.3,0.0451904]
[1644773852491,0.1733,2884.0,2882.5,1.12618071]
[1644773852492,1.01386698,2883.3,2882.9,0.00181547]
[1644773852690,3.47076,2883.4,2882.6,0.00181547]
[1644773852894,1.8674,2883.7,2882.7,0.65734319]
[1644773853136,0.8674,2883.7,2882.8,0.00181547]
[1644773853337,0.8674,2883.7,2882.6,0.65915866]
[1644773853536,0.8674,2883.7,2882.7,0.00181547]
[1644773853738,0.94271534,2883.1,2882.7,0.00181547]
[1644773853939,0.94271534,2883.1,2882.6,0.65734319]
[1644773853940,1.81030534,2883.1,2882.6,0.65734319]
[1644773854138,1.81030534,2883.1,2882.5,0.00181547]
[1644773854743,0.94271534,2883.1,2882.4,0.84572303]
[1644773855139,0.94271534,2883.1,2882.7,0.00354043]
[1644773855938,0.94271534,2883.1,2882.5,0.00181547]
[1644773856143,0.94271534,2883.1,2882.5,0.37263098]
[1644773856441,1.04085,2883.5,2882.8,0.01129598]
[1644773856442,0.01129328,2883.4,2882.8,0.01129598]
[1644773856639,0.01129328,2883.4,2882.9,0.37081551]
[1644773856897,0.01129328,2883.4,2883.0,0.00181547]
[1644773857296,0.79389085,2883.9,2883.0,0.00181547]
[1644773857492,0.01129396,2883.4,2883.0,0.38392665]
[1644773857692,0.01129396,2883.4,2883.1,0.37081551]
[1644773858595,0.95656482,2883.5,2883.1,0.37081551]
[1644773858791,0.01129423,2883.4,2883.2,0.37081551]
[1644773859592,0.29289085,2883.9,2883.2,0.37081551]
[1644773859799,1.112714,2883.8,2883.3,3.69355013]
[1644773859997,0.01129436,2883.4,2883.2,0.54549549]
[1644773860193,0.0056995,2883.4,2883.3,4.03010498]
[1644773860635,0.0056995,2883.4,2883.3,0.96251862]
[1644773860838,0.1734,2884.5,2883.3,4.45820544]
[1644773861138,0.1734,2884.5,2884.0,1.15029689]
[1644773861139,1.09780033,2884.4,2884.0,1.15029689]
[1644773861736,1.09780033,2884.5,2884.0,1.15029689]
[1644773862137,1.09780033,2884.5,2883.6,0.1733]
[1644773862342,1.09780033,2884.5,2883.7,0.32558434]
[1644773863038,1.09780033,2884.5,2883.6,0.1733]
[1644773863039,0.8672,2884.4,2883.6,0.1733]
[1644773863239,0.8672,2884.4,2883.3,3.7918]
[1644773863240,0.86725,2884.2,2883.5,1.01128926]
[1644773863438,1.09780033,2884.1,2883.5,1.01128926]
[1644773863640,1.09780033,2884.0,2883.5,1.01128926]
[1644773863838,1.0,2884.5,2883.5,1.01128926]
[1644773863839,0.89590206,2884.1,2883.5,1.01128926]
[1644773864041,0.1733,2884.5,2883.6,0.32568579]
[1644773864290,1.13332907,2884.4,2883.6,0.62568579]
[1644773864488,1.65950484,2884.9,2883.6,0.62568579]
[1644773864489,1.13332907,2884.3,2883.7,0.32568579]
[1644773864787,1.0,2884.9,2883.7,0.32568579]
[1644773864788,0.01129344,2884.2,2883.7,0.32568579]
[1644773864991,0.01129344,2884.2,2883.6,0.1733]
[1644773864992,2.07168707,2884.1,2883.6,0.1733]
[1644773865187,1.13357484,2884.0,2883.6,0.1733]
[1644773865388,0.01129344,2884.2,2883.6,0.1733]
[1644773865589,1.13167739,2884.1,2883.6,0.1733]
[1644773865788,1.13167739,2884.0,2883.6,0.1733]
[1644773865989,0.01129375,2883.9,2883.6,0.1733]
[1644773866190,0.01129375,2883.9,2883.5,1.61128926]
[1644773866790,0.01129375,2883.9,2883.6,0.3275171]
[1644773866990,1.13251632,2884.1,2883.6,0.3275171]
[1644773867190,0.01129387,2883.8,2883.6,0.3275171]
[1644773867593,0.01129387,2883.8,2883.5,2.47830926]
[1644773868039,1.0,2884.6,2883.5,2.47830926]
[1644773868237,0.83280484,2884.7,2883.5,2.47830926]
[1644773868238,0.01129393,2883.8,2883.5,1.61128926]
[1644773868444,0.01129393,2883.8,2883.6,1.19806992]
[1644773868642,0.01129393,2883.8,2883.5,1.61128926]
[1644773868849,0.01129393,2883.8,2883.6,0.33107489]
[1644773869437,0.01129387,2883.8,2883.6,0.33107489]
[1644773869640,0.01129387,2883.8,2883.5,0.3]
[1644773869836,0.01129387,2883.8,2883.6,0.33113594]
[1644773870242,0.01129387,2883.8,2883.6,1.80035844]
[1644773870438,1.14463386,2884.3,2883.6,1.4692225]
[1644773870640,1.12790218,2884.2,2883.7,0.33109118]
[1644773870840,0.01129387,2883.8,2883.7,0.33109118]
[1644773871139,0.01129387,2883.8,2883.6,1.4692225]
[1644773871786,1.73422,2884.6,2883.6,1.4692225]
[1644773871989,0.01129387,2883.8,2883.6,1.4692225]
[1644773872792,1.07593272,2884.4,2883.6,1.4692225]
[1644773872992,1.12798421,2884.3,2883.7,0.33112481]
[1644773873191,0.01129387,2883.8,2883.7,0.33112481]
[1644773873392,0.01129387,2883.8,2883.6,1.1692225]
[1644773873999,0.86722,2884.2,2883.6,1.1692225]
[1644773874193,0.86722,2884.2,2883.3,0.1733]
[1644773874194,1.1276911,2884.1,2883.3,0.1733]
[1644773874394,0.01129387,2883.8,2883.4,0.33109194]
[1644773875096,0.01129387,2883.8,2883.4,0.63109194]
[1644773875299,0.1733,2884.3,2883.5,0.33109194]
[1644773875550,2.81040272,2884.4,2883.2,1.37444606]
[1644773875551,0.01129399,2883.7,2883.6,1.19176813]
[1644773876539,1.94310272,2884.4,2883.6,1.19176813]
[1644773876742,0.01129393,2883.8,2883.6,1.19176813]
[1644773877140,0.01129393,2883.8,2883.7,0.33104067]
[1644773877740,2.73416,2884.6,2883.7,0.33104067]
[1644773877945,0.01129381,2883.9,2883.7,0.33104067]
[1644773878143,0.01129381,2883.9,2883.8,0.1733]
[1644773878341,0.01129381,2883.9,2883.8,0.50434067]
[1644773878941,6.7235,2885.0,2883.8,0.50434067]
[1644773879145,0.01129368,2884.0,2883.9,1.49800067]
[1644773879399,3.5,2884.8,2883.9,2.30534067]
[1644773879595,2.35995491,2885.7,2884.0,0.50434067]
[1644773879596,3.6733,2885.6,2884.0,0.50434067]
[1644773879794,3.6733,2885.6,2884.1,0.33104067]
[1644773879795,1.12880276,2885.5,2884.1,0.33104067]
[1644773879996,0.86695,2885.3,2884.2,0.1733]
[1644773880199,1.12880276,2885.2,2884.3,0.33104067]
[1644773880396,0.86695,2885.1,2884.5,1.14280718]
[1644773880604,1.12880276,2885.0,2884.5,1.14280718]
[1644773880797,1.99577276,2885.0,2884.5,1.14280718]
[1644773880997,1.12880276,2884.9,2884.5,1.14280718]
[1644773881200,0.86697,2885.0,2884.5,1.14280718]
[1644773881201,1.12880276,2884.8,2884.5,1.14280718]
[1644773881400,0.86697,2885.0,2884.5,1.14280718]
[1644773881596,1.12233655,2884.9,2884.5,1.14280718]
[1644773881799,1.98932655,2884.9,2884.1,0.3]
[1644773881998,1.98932655,2884.9,2884.2,0.33761866]
[1644773881999,1.12233655,2884.8,2884.2,0.33761866]
[1644773882200,1.12233655,2884.8,2883.9,0.7733]
[1644773882401,3.86774444,2885.0,2884.0,0.33773516]
[1644773882402,1.12233655,2884.7,2884.0,0.33773516]
[1644773882600,0.53223896,2883.9,2883.7,0.4953]
[1644773882800,0.53223896,2883.9,2883.7,0.2453]
[1644773885842,1.14440968,2883.8,2883.7,0.2453]
[1644773886241,0.53223896,2883.9,2883.7,0.57418834]
[1644773886443,0.53223896,2883.9,2883.8,0.32888834]
[1644773887991,0.53223896,2883.9,2883.8,1.33376345]
[1644773891239,1.66637387,2883.9,2883.8,1.33376345]
[1644773898052,0.0112931,2884.1,2883.9,4.8]
[1644773898242,0.65950484,2885.0,2884.1,0.3]
[1644773898442,1.10318358,2885.0,2884.2,0.50218834]
[1644773898638,1.10318358,2885.0,2884.3,0.32888834]
[1644773898843,1.10318358,2885.0,2884.6,0.85293322]
[1644773899237,0.65950484,2885.1,2884.6,0.85293322]
[1644773899238,1.10318358,2884.9,2884.6,0.85293322]
[1644773899438,0.65950484,2885.1,2884.6,0.85293322]
[1644773899439,1.10318358,2884.8,2884.6,1.71979322]
[1644773899638,1.10318358,2884.7,2884.6,1.71979322]
[1644773899838,1.10318358,2884.7,2884.6,2.08528815]
[1644773900037,0.01129252,2884.9,2884.6,2.08528815]
[1644773900038,1.10318358,2884.8,2884.6,2.08528815]
[1644773900238,1.10318358,2884.7,2884.6,1.71979322]
[1644773900439,1.10318358,2884.8,2884.6,2.08518429]
[1644773900740,1.10318358,2884.7,2884.6,1.71979322]
[1644773900938,1.10318358,2884.7,2884.6,2.08516798]
[1644773901341,1.10318358,2884.7,2884.6,1.23223476]
[1644773901541,1.10318358,2884.7,2884.6,0.36537476]
[1644773901788,1.10318358,2884.7,2884.3,1.64024]
[1644773901987,1.10318358,2884.6,2884.4,0.36562928]
[1644773902187,1.10318358,2884.5,2884.4,0.36562928]
[1644773902789,1.10318358,2884.5,2884.3,0.1733]
[1644773902990,1.10318358,2884.4,2884.3,1.1661846]
[1644773903790,1.10318358,2884.4,2884.3,1.53866207]
[1644773903993,1.10318358,2884.4,2884.3,1.1661846]
[1644773904590,1.10318358,2884.4,2884.3,1.53878971]
[1644773904791,1.10318358,2884.4,2884.3,1.53878815]
[1644773904991,1.10318358,2884.4,2884.3,1.1661846]
[1644773905191,1.10318358,2884.4,2884.3,1.52524029]
[1644773905393,1.10318358,2884.4,2884.3,1.1661846]
[1644773906046,1.10318358,2884.4,2884.3,1.52525167]
[1644773906243,1.10318358,2884.4,2884.3,1.52527287]
[1644773906444,1.10318358,2884.4,2884.3,1.52526413]
[1644773906646,1.10318358,2884.4,2884.3,1.52526005]
[1644773906845,1.10318358,2884.4,2884.3,1.1661846]
[1644773907243,1.10318358,2884.4,2884.3,1.52525795]
[1644773907443,1.10318358,2884.4,2884.3,1.1661846]
[1644773907645,1.10318358,2884.4,2884.3,0.35905793]
[1644773907846,1.10318358,2884.4,2884.2,0.51456798]
[1644773908045,1.10318358,2884.3,2884.2,0.51456798]
[1644773908443,1.10318358,2884.4,2884.2,0.51456798]
[1644773908644,1.10318358,2884.3,2884.2,0.51456798]
[1644773908844,1.10318358,2884.3,2884.2,0.88075513]
[1644773909043,1.10318358,2884.4,2884.2,0.88075513]
[1644773909297,1.10318358,2884.3,2884.2,0.51456798]
[1644773909493,1.10318358,2884.3,2884.2,0.88074389]
[1644773909694,1.10318358,2884.3,2884.2,2.61462389]
[1644773910393,0.01078018,2884.4,2884.2,2.61462389]
[1644773910595,0.01078018,2884.4,2884.3,0.36617591]
[1644773910995,1.1109432,2884.4,2884.3,0.36617591]
[1644773911395,1.10016302,2884.4,2884.3,0.36617591]
[1644773913052,1.10018772,2884.4,2884.3,2.09987591]
[1644773913244,0.01077677,2884.5,2884.3,1.23304591]
[1644773913446,0.01077677,2884.5,2884.4,0.36617591]
[1644773913844,1.10016684,2884.5,2884.4,0.36617591]
[1644773914045,0.01077666,2884.6,2884.4,0.36617591]
[1644773914246,1.10016684,2884.5,2884.4,1.23302591]
[1644773914847,1.10016684,2884.5,2884.4,0.36617591]
[1644773915148,1.10016684,2884.5,2884.4,0.36593791]
[1644773915347,1.96722684,2884.5,2884.4,0.36593428]
[1644773915546,1.96722684,2884.5,2884.2,0.81456798]
[1644773915547,1.10016684,2884.5,2884.3,0.365945]
[1644773915748,1.10016684,2884.5,2884.4,0.36594804]
[1644773916048,1.10016684,2884.5,2884.3,0.36592616]
[1644773916446,1.10016684,2884.4,2884.3,0.36592616]
[1644773916647,1.10016684,2884.4,2884.3,1.23283616]
[1644773917194,1.09752919,2884.4,2884.3,0.36592616]
[1644773917390,0.83280484,2884.9,2884.2,0.81456798]
[1644773917591,1.09744707,2884.8,2884.3,0.36834702]
[1644773917890,0.65950484,2884.9,2884.3,0.36834702]
[1644773917891,0.01077725,2884.5,2884.3,0.36834702]
[1644773918090,1.09744707,2884.4,2884.3,0.36834702]
[1644773920743,1.09744707,2884.4,2884.3,0.36723119]
[1644773921747,0.88613456,2883.9,2883.6,0.86717]
[1644773921947,0.88613456,2883.9,2883.5,0.26011968]
[1644773922149,0.88613456,2883.9,2883.5,0.01011968]
[1644773922449,0.88613456,2883.9,2883.0,0.65734319]
[1644773922646,0.88613456,2883.9,2883.5,1.14164551]
[1644773922849,0.88613456,2883.9,2883.5,2.87584551]
[1644773923046,0.88613456,2883.9,2883.5,2.00871551]
[1644773923246,0.88613456,2883.9,2883.5,1.14164551]
[1644773923446,0.88613456,2883.9,2883.5,1.13152583]
[1644773923646,0.88613456,2883.9,2883.5,1.14164554]
[1644773924291,0.88613456,2883.9,2883.5,2.00885554]
[1644773924695,0.88613456,2883.9,2883.5,1.99873583]
[1644773924894,0.88613456,2883.9,2883.5,2.00885554]
[1644773925096,0.88613456,2883.9,2883.6,0.86709]
[1644773925293,0.88613456,2883.9,2883.6,1.90731]
[1644773925891,0.88613456,2883.9,2883.6,2.90731]
[1644773926094,0.88613456,2883.9,2883.7,0.86695]
[1644773926293,0.88613456,2883.9,2883.7,1.46695]
[1644773926493,0.88613456,2883.9,2883.7,2.33392]
[1644773927392,0.88613456,2883.9,2883.8,0.867]
[1644773941896,0.88613456,2883.9,2883.8,1.28583027]
[1644773944547,0.88613456,2883.9,2883.8,1.58583027]
[1644773945244,0.1733,2884.6,2884.0,0.86693]
[1644773945444,0.01077716,2884.1,2884.0,2.60078]
[1644773945644,0.01077716,2884.1,2884.0,2.46988743]
[1644773945846,0.01077716,2884.1,2884.0,2.76988743]
[1644773946344,0.66326593,2884.9,2884.5,1.00373045]
[1644773946542,1.69582156,2884.9,2884.6,0.43602743]
[1644773946995,1.03255563,2884.8,2884.6,0.43602743]
[1644773947196,1.03255563,2884.7,2884.6,0.43602743]
[1644773947595,1.03255563,2884.8,2884.5,0.43602743]
[1644773947794,1.03255563,2884.7,2884.6,0.43602743]
[1644773948194,1.03255563,2884.7,2884.3,0.85796512]
[1644773948398,1.03255563,2884.7,2884.4,0.43602743]
[1644773948594,1.03255563,2884.7,2884.4,2.16978743]
[1644773948794,1.03255563,2884.6,2884.5,0.43602743]
[1644773948994,1.04333267,2884.6,2884.5,0.43602743]
[1644773949195,1.04333267,2884.6,2884.4,0.43602743]
[1644773949394,0.01077704,2884.6,2884.5,0.43602743]
[1644773949595,1.04260596,2884.6,2884.5,0.86681]
[1644773949893,1.03182892,2884.6,2884.5,1.90283743]
[1644773950095,1.03182892,2885.1,2884.5,1.30283743]
[1644773950295,0.01077699,2884.7,2884.6,0.43602743]
[1644773950554,1.04260591,2884.7,2884.6,0.43602743]
[1644773950949,1.04260591,2884.7,2884.5,0.43602743]
[1644773951147,1.03182892,2884.6,2884.5,0.43602743]
[1644773951348,0.01077688,2884.8,2884.5,0.43602743]
[1644773951550,1.03182892,2884.7,2884.5,0.43602743]
[1644773951747,1.03182892,2884.7,2884.5,1.30285743]
[1644773951947,1.03182892,2884.7,2884.6,0.43602743]
[1644773952646,1.03182892,2884.7,2884.5,0.43602743]
[1644773953648,1.20512892,2885.1,2884.5,0.43602743]
[1644773953850,0.01062955,2884.7,2884.5,0.43602743]
[1644773954049,1.03182892,2884.6,2884.5,1.30287743]
[1644773954694,1.03182892,2884.6,2884.5,1.25287743]
[1644773954895,0.01062961,2884.7,2884.6,0.86686]
[1644773955497,0.01062961,2884.7,2884.3,2.02486512]
[1644773955698,0.01062961,2884.7,2884.3,0.85796512]
[1644773955898,0.84511822,2884.9,2884.2,0.86699]
[1644773956297,0.01062966,2884.6,2884.2,1.16699]
[1644773956497,0.01062966,2884.6,2884.2,2.03393]
[1644773956698,0.01062966,2884.6,2884.2,1.73393]
[1644773956899,0.01062966,2884.6,2884.3,0.3]
[1644773957098,0.1733,2884.9,2884.3,1.16692]
[1644773957099,0.83292456,2884.9,2884.3,1.16692]
[1644773957299,0.01077714,2884.5,2884.3,0.3]
[1644773957498,0.01077714,2884.5,2884.4,0.98302354]
[1644773958344,0.83292456,2884.9,2884.4,0.98302354]
[1644773958545,0.01077709,2884.6,2884.4,0.98302354]
[1644773959545,0.86695,2884.8,2884.4,0.98302354]
[1644773959745,0.01077704,2884.6,2884.4,0.98302354]
[1644773960147,0.82772704,2884.8,2884.4,0.98302354]
[1644773960344,0.82772704,2884.8,2884.4,0.93302354]
[1644773960847,0.1733,2884.9,2884.4,1.79993354]
[1644773961045,0.65962456,2885.0,2884.4,1.79993354]
[1644773961647,0.86693,2884.9,2884.4,1.79993354]
[1644773961902,1.52655456,2884.9,2884.4,0.22618288]
[1644773962693,1.5303145,2884.9,2884.4,0.22618288]
[1644773962894,1.7036145,2884.9,2884.4,0.22618288]
[1644773964294,1.7036145,2884.9,2884.4,1.09310288]
[1644773964496,0.0112927,2884.8,2884.4,1.09310288]
[1644773964695,0.0112927,2884.8,2884.4,1.95999288]
[1644773964896,0.0112927,2884.8,2884.4,1.09310288]
[1644773965296,0.0112927,2884.8,2884.4,0.22618288]
[1644773965543,0.86695,2884.8,2884.4,0.22618288]
[1644773965748,0.01129276,2884.7,2884.4,0.22618288]
[1644773966745,1.5303145,2884.9,2884.4,0.22618288]
[1644773966946,0.01129263,2884.7,2884.4,0.22618288]
[1644773967546,0.01129263,2884.7,2884.4,1.09311288]
[1644773968046,1.5303145,2884.9,2884.4,1.09311288]
[1644773968247,0.01129263,2884.7,2884.4,1.09311288]
[1644773968648,0.01129263,2884.7,2884.4,1.96001288]
[1644773968846,0.01129263,2884.7,2884.4,1.09311288]
[1644773969298,0.01129263,2884.7,2884.4,0.22618288]
[1644773970297,0.86695,2884.8,2884.4,0.22618288]
[1644773970697,0.01129263,2884.7,2884.4,0.22618288]
[1644773971498,0.86695,2884.8,2884.4,0.22618288]
[1644773971702,0.01129263,2884.7,2884.4,0.22618288]
[1644773972697,0.86695,2884.8,2884.4,0.22618288]
[1644773972897,0.01129263,2884.7,2884.4,0.22618288]
[1644773973145,0.01129263,2884.7,2884.4,0.86693]
[1644773973943,0.00375994,2884.9,2884.4,0.86693]
[1644773974143,0.00375994,2884.9,2884.4,1.73381]
[1644773974144,0.01129263,2884.7,2884.4,1.73381]
[1644773974744,0.97587413,2884.6,2884.5,0.49337044]
[1644773976794,0.97587413,2884.6,2884.5,1.36023044]
[1644773977396,0.97587413,2884.6,2884.5,0.49337044]
[1644773977796,0.97505411,2884.6,2884.5,0.49337044]
[1644773982255,0.01129263,2884.7,2884.5,0.86686]
[1644773982450,0.6633845,2884.9,2884.4,0.86688]
[1644773982655,0.01129263,2884.7,2884.6,0.86688]
[1644773982850,0.27469908,2884.5,2884.3,4.33687945]
[1644773983250,0.27469908,2884.5,2884.3,4.63687945]
[1644773983851,0.27469908,2884.5,2884.4,0.86688]
[1644773984400,0.27469908,2884.5,2884.4,1.16688]
[1644773984593,0.27469908,2884.5,2884.4,0.86688]
[1644773985199,0.01129236,2884.7,2884.5,4.91684]
[1644773985398,0.01129236,2884.7,2884.6,0.86677]
[1644773986000,0.65962456,2885.2,2884.6,0.86677]
[1644773986200,0.0112927,2884.8,2884.7,0.3]
[1644773986401,0.0112927,2884.8,2884.7,1.25566741]
[1644773986804,0.0112927,2884.8,2884.7,1.55566741]
[1644773987000,0.0112927,2884.8,2884.7,0.95566741]
[1644773987200,0.6633845,2885.0,2884.7,1.25566741]
[1644773987403,0.01129258,2884.9,2884.7,3.28936741]
[1644773987601,0.01129258,2884.9,2884.7,0.95566741]
[1644773988056,0.01129258,2884.9,2884.7,1.25566741]
[1644773988247,0.01129258,2884.9,2884.7,2.42253741]
[1644773988447,0.00375994,2885.0,2884.7,2.42253741]
[1644773988647,0.01129251,2884.9,2884.8,0.86679]
[1644773989447,0.01129251,2884.9,2884.8,1.73359]
[1644773989647,0.00375994,2885.2,2884.8,0.86679]
[1644773989849,0.01095369,2885.0,2884.8,0.86679]
[1644773990050,0.01095369,2885.0,2884.8,1.16679]
[1644773990648,0.01095369,2885.0,2884.8,0.3]
[1644773990848,0.65962456,2885.4,2884.8,0.81339733]
[1644773991050,0.01095363,2885.0,2884.8,0.81339733]
[1644773991450,0.01095363,2885.0,2884.8,0.51339733]
[1644773991648,0.01095363,2885.0,2884.8,0.81339733]
[1644773991896,0.01095363,2885.0,2884.8,1.68024733]
[1644773992092,0.00375994,2885.3,2884.8,1.68024733]
[1644773992294,0.01095363,2885.0,2884.8,1.68024733]
[1644773992698,0.01095363,2885.0,2884.8,3.11378733]
[1644773992894,0.01095363,2885.0,2884.8,2.54699733]
[1644773993095,0.00375994,2885.2,2884.9,0.3]
[1644773993294,0.65962456,2885.3,2884.9,1.16681]
[1644773993494,0.01074954,2885.0,2884.9,1.16681]
[1644773993899,0.01074954,2885.0,2884.8,1.11339733]
[1644773994297,0.00375994,2885.2,2884.8,1.11339733]
[1644773994496,0.6633845,2885.4,2884.8,1.11339733]
[1644773994697,0.01074954,2885.4,2884.9,4.8]
[1644773994904,10.7268,2885.9,2884.9,4.8]
[1644773994905,0.88105823,2886.1,2885.0,31.57319]
[1644773995100,0.88105823,2886.4,2885.2,20.34]
[1644773995306,0.88105823,2886.6,2885.4,25.34]
[1644773995555,0.00376592,2886.5,2885.6,0.88099095]
[1644773995750,0.00376592,2886.5,2885.8,0.86618]
[1644773995947,0.1732,2886.8,2886.0,0.86618]
[1644773995948,0.00376592,2886.6,2886.0,0.86618]
[1644773996146,0.00376592,2886.7,2886.1,0.501]
[1644773996346,0.00376592,2886.7,2886.1,1.14619129]
[1644773996546,0.00376592,2886.7,2886.1,1.44619129]
[1644773996747,0.00376592,2886.7,2886.2,0.17209129]
[1644773996946,0.00376592,2886.7,2886.3,0.501]
[1644773997146,0.1732,2886.8,2886.5,0.86608]
[1644773997347,0.00376592,2886.7,2886.6,0.501]
[1644773997547,0.1732,2886.8,2886.6,0.501]
[1644773997745,0.1732,2886.8,2886.6,0.9741]
[1644773997951,0.79767512,2886.7,2886.6,0.9741]
[1644773998545,0.79767512,2886.7,2886.6,5.30437]
[1644773998746,0.79767512,2886.7,2886.6,5.60437]
[1644773998946,0.79767512,2886.7,2886.6,6.60437]
[1644773999145,0.18398134,2886.8,2886.6,6.60437]
[1644773999146,0.1732,2886.8,2886.6,6.60437]
[1644773999397,0.1839814,2886.8,2886.7,1.0]
[1644773999596,0.1839814,2886.8,2886.7,2.667]
[1644774000398,0.1732,2886.8,2886.7,2.667]
[1644774003149,0.00895592,2886.8,2886.7,2.667]
[1644774003345,0.00895592,2886.8,2886.7,2.8312]
[1644774003745,0.04337882,2887.5,2887.1,1.73179]
[1644774003947,0.00376592,2887.9,2887.2,0.501]
[1644774004146,0.00376592,2887.9,2887.2,0.801]
[1644774004545,0.00376592,2887.9,2887.3,0.3]
[1644774004748,0.00376592,2887.9,2887.8,1.60560776]
[1644774004945,1.52227207,2888.1,2887.8,1.60560776]
[1644774005148,0.65557207,2888.1,2887.8,1.60560776]
[1644774005548,0.65557207,2888.2,2887.8,1.60560776]
[1644774005753,0.00376592,2888.3,2887.8,1.60560776]
[1644774005754,0.65933799,2888.3,2887.8,1.60560776]
[1644774005946,0.00376592,2888.3,2887.8,1.60560776]
[1644774006149,0.00376592,2888.3,2887.8,2.47146776]
[1644774006350,0.17686592,2888.3,2887.8,2.97246776]
[1644774006798,0.00772615,2888.2,2888.1,0.3]
[1644774007599,0.00376592,2888.7,2888.1,0.3]
[1644774007801,0.01129223,2888.3,2888.2,0.86568]
[1644774007999,0.01129223,2888.3,2888.1,3.76272]
[1644774008199,0.01129223,2888.3,2888.2,1.0]
[1644774008405,0.01129223,2888.3,2888.2,1.801]
[1644774008602,0.01129223,2888.3,2888.2,2.66666]
[1644774008801,0.00376592,2889.0,2888.2,6.73694729]
[1644774009002,0.00376592,2889.0,2888.4,1.73084]
[1644774009203,0.04516166,2888.8,2888.5,0.501]
[1644774009901,0.00376592,2889.3,2888.7,0.86539]
[1644774010102,0.00376592,2889.5,2888.9,0.86539]
[1644774010304,0.04515968,2889.2,2889.0,0.501]
[1644774010751,0.04515968,2889.2,2889.0,0.801]
[1644774011153,0.00376592,2889.6,2889.0,0.72359]
[1644774011352,0.82847207,2890.1,2889.5,0.98374788]
[1644774011353,0.00376592,2889.9,2889.5,0.98374788]
[1644774011750,0.00376592,2889.9,2889.5,1.28374788]
[1644774012151,0.00376592,2889.9,2889.5,1.58374788]
[1644774013253,0.00376592,2889.9,2889.6,3.29161471]
[1644774013455,0.00376592,2889.9,2889.6,4.21745717]
[1644774013651,0.00376592,2890.4,2889.6,0.86532]
[1644774014053,0.00376592,2890.4,2889.5,1.12105754]
[1644774014296,0.00376592,2890.4,2889.5,1.98637754]
[1644774014497,0.00376592,2890.4,2889.6,0.86534]
[1644774014999,0.01128261,2890.1,2889.6,0.86534]
[1644774015196,0.01128261,2890.1,2889.9,1.12235653]
[1644774015596,0.01128261,2890.1,2889.9,1.42235653]
[1644774015797,0.01128261,2890.1,2889.9,1.72235653]
[1644774016102,0.00376592,2890.7,2889.9,1.72235653]
[1644774016297,0.00768107,2890.1,2889.9,1.72235653]
[1644774017196,0.30786592,2890.9,2889.9,1.72235653]
[1644774017397,0.00768107,2890.1,2889.9,1.72235653]
[1644774018455,0.00376592,2890.4,2889.9,1.72235653]
[1644774018655,0.00768107,2890.1,2889.9,1.72235653]
[1644774019550,0.00376592,2890.4,2889.9,1.72235653]
[1644774019953,0.01128685,2890.1,2889.9,1.72235653]
[1644774020353,0.01128685,2890.1,2889.9,2.58756653]
[1644774020751,0.0017744,2890.0,2889.9,2.58756653]
[1644774020953,0.0017744,2890.0,2889.9,5.8777249]
[1644774021159,0.0017744,2890.0,2889.9,2.58756653]
[1644774023000,0.0017744,2890.0,2889.9,5.98754196]
[1644774023206,0.0017744,2890.0,2889.9,4.41660244]
[1644774023905,0.0017744,2890.0,2889.9,5.32709026]
[1644774025199,0.0017744,2890.0,2889.9,5.62709026]
[1644774025402,0.0017744,2890.0,2889.9,5.92709026]
[1644774025655,0.0013308,2890.0,2889.9,2.61662701]
[1644774025850,0.0013308,2890.0,2889.9,2.61664701]
[1644774026250,0.0013308,2890.0,2889.9,1.61664701]
[1644774028154,0.0013308,2890.0,2889.8,1.7305]
[1644774028556,0.0013308,2890.0,2889.8,0.86525]
[1644774029398,0.01261778,2890.0,2889.8,0.3]
[1644774029599,0.01261778,2890.0,2889.8,0.6]
[1644774030100,0.01261778,2890.0,2889.8,1.46525]
[1644774030299,0.01261778,2890.0,2889.8,0.86525]
[1644774030502,0.0013308,2890.0,2889.8,0.86525]
[1644774030699,0.01261778,2890.0,2889.8,0.86525]
[1644774030901,0.01261778,2890.0,2889.7,1.59561]
[1644774031507,0.01261778,2890.0,2889.6,1.16537]
[1644774031699,0.01261778,2890.0,2889.6,1.33827]
[1644774031700,0.0013308,2890.0,2889.6,1.33827]
[1644774032011,0.01261784,2890.0,2889.6,1.03827]